bitfinex/quotes_SOLUSD_20240925
["timestamp","ask_amount","ask_price","bid_price","bid_amount"]
[1727222772139,6.5437,152.82,152.78,6.5452]
[1727222772549,16.4794,152.78,152.75,6.5462]
[1727222772762,16.4794,152.78,152.76,6.5461]
[1727222774165,16.4794,152.78,152.7,33.20807869]
[1727222774356,16.4794,152.78,152.74,6.7907485]
[1727222774667,6.102,152.81,152.74,0.2441485]
[1727222774867,6.102,152.81,152.77,6.5457]
[1727222775178,16.4794,152.82,152.78,6.5452]
[1727222775539,16.4794,152.82,152.74,0.2441485]
[1727222775763,16.4794,152.82,152.79,6.5448]
[1727222776769,16.4794,152.82,152.8,6.5445]
[1727222776962,16.4794,152.82,152.79,6.5448]
[1727222777548,6.5445,152.81,152.76,6.5461]
[1727222777758,16.4794,152.82,152.74,0.2441485]
[1727222777940,23.0231,152.82,152.77,6.5457]
[1727222782478,16.4794,152.82,152.74,0.2441485]
[1727222782784,6.5446,152.8,152.74,0.2441485]
[1727222783974,6.5449,152.79,152.74,6.7911485]
[1727222784158,23.776884,152.8,152.74,0.2441485]
[1727222784361,6.102,152.79,152.74,0.2441485]
[1727222784563,6.5462,152.76,152.74,0.2441485]
[1727222787359,6.5458,152.77,152.74,0.2441485]
[1727222788271,6.5453,152.78,152.74,0.2441485]
[1727222789454,6.5453,152.78,152.74,6.7911485]
[1727222789856,12.6469,152.79,152.74,6.7911485]
[1727222790181,6.5449,152.79,152.74,6.7911485]
[1727222790364,6.5449,152.79,152.75,6.5466]
[1727222792483,16.4794,152.82,152.74,0.2441485]
[1727222792873,16.4794,152.82,152.79,6.5448]
[1727222793762,16.4794,152.82,152.78,6.5452]
[1727222793962,23.0231,152.82,152.78,6.5452]
[1727222795680,6.5445,152.8,152.74,0.2441485]
[1727222795892,16.4794,152.82,152.74,0.2441485]
[1727222796081,16.4794,152.82,152.74,6.7910485]
[1727222796279,6.5448,152.8,152.74,6.7910485]
[1727222797277,6.5445,152.8,152.75,6.5465]
[1727222797776,16.4794,152.82,152.74,0.2441485]
[1727222797777,6.5458,152.77,152.74,0.2441485]
[1727222797984,6.5459,152.77,152.74,0.2441485]
[1727222798864,29.878884,152.81,152.74,0.2441485]
[1727222798865,23.776884,152.79,152.74,0.2441485]
[1727222799070,16.3616,152.8,152.74,0.2441485]
[1727222799283,6.5463,152.76,152.74,0.2441485]
[1727222802389,6.5454,152.78,152.74,0.2441485]
[1727222803898,6.5458,152.77,152.74,0.2441485]
[1727222806991,6.102,152.81,152.74,0.2441485]
[1727222807299,6.5454,152.78,152.74,0.2441485]
[1727222809803,6.5454,152.78,152.74,6.7911485]
[1727222809987,23.776884,152.8,152.74,0.2441485]
[1727222810192,6.5459,152.77,152.74,0.2441485]
[1727222812495,6.5454,152.78,152.74,0.2441485]
[1727222812711,6.5449,152.79,152.74,6.7911485]
[1727222814301,6.5454,152.78,152.74,6.7911485]
[1727222815796,6.5449,152.8,152.75,6.5463]
[1727222815999,6.102,152.81,152.74,0.2441485]
[1727222816296,6.5441,152.81,152.76,6.5461]
[1727222817079,6.5441,152.81,152.74,0.2441485]
[1727222817291,6.5441,152.81,152.77,6.5456]
[1727222817791,16.2721,152.85,152.77,6.5456]
[1727222817792,6.5437,152.82,152.77,6.5456]
[1727222818098,6.5437,152.82,152.74,6.4214485]
[1727222818099,6.5437,152.82,152.78,6.5452]
[1727222819099,6.5444,152.81,152.76,6.5461]
[1727222819316,6.545,152.79,152.74,6.4214485]
[1727222820486,6.545,152.79,152.74,0.2441485]
[1727222821092,23.776884,152.84,152.74,0.2441485]
[1727222821301,6.5461,152.77,152.74,0.2441485]
[1727222825007,6.5466,152.75,152.74,0.2441485]
[1727222826313,30.323484,152.75,152.74,0.2441485]
[1727222826689,6.5466,152.75,152.74,0.2441485]
[1727222827706,30.323484,152.75,152.74,0.2441485]
[1727222828696,16.2721,152.79,152.74,0.2441485]
[1727222828902,6.5466,152.75,152.74,0.2441485]
[1727222829406,16.2721,152.79,152.74,0.2441485]
[1727222829588,16.3584,152.83,152.74,0.2441485]
[1727222829589,6.5446,152.8,152.75,6.5465]
[1727222829914,32.6305,152.83,152.74,0.2441485]
[1727222829915,6.5456,152.78,152.74,0.2441485]
[1727222830206,6.5461,152.77,152.74,0.2441485]
[1727222830503,16.361,152.81,152.74,0.2441485]
[1727222830703,18.31628949,152.83,152.74,0.2441485]
[1727222830704,30.323484,152.75,152.74,0.2441485]
[1727222836508,30.325584,152.7,152.69,0.2441485]
[1727222839211,16.2721,152.77,152.69,0.2441485]
[1727222839521,6.5462,152.76,152.71,6.5482]
[1727222839697,16.2721,152.77,152.72,6.5478]
[1727222839902,6.5457,152.78,152.73,6.5473]
[1727222840090,6.5462,152.76,152.72,6.5478]
[1727222840290,6.547,152.75,152.69,12.1803485]
[1727222840496,6.547,152.75,152.7,12.5688]
[1727222840699,6.5471,152.74,152.69,18.7294485]
[1727222841199,23.776884,152.72,152.69,0.2441485]
[1727222843113,30.324784,152.72,152.69,0.2441485]
[1727222843288,30.325584,152.7,152.69,0.2441485]
[1727222846592,6.5484,152.71,152.69,0.2441485]
[1727222847012,6.548,152.72,152.69,0.2441485]
[1727222847220,23.776884,152.71,152.69,0.2441485]
[1727222847918,6.548,152.72,152.69,0.2441485]
[1727222849393,23.776884,152.73,152.7,6.5486]
[1727222849605,23.776884,152.73,152.69,0.2441485]
[1727222850005,30.324484,152.73,152.69,0.2441485]
[1727222850319,23.776884,152.73,152.69,6.7932485]
[1727222850516,30.325584,152.7,152.69,0.2441485]
[1727222851906,50.325584,152.7,152.69,0.2441485]
[1727222852222,30.325584,152.7,152.69,0.2441485]
[1727222859423,52.288884,152.7,152.69,0.2441485]
[1727222859610,30.327384,152.66,152.65,0.2441485]
[1727222860012,23.776884,152.66,152.65,0.2441485]
[1727222860519,15.8159,152.7,152.65,0.2441485]
[1727222860729,20.0,152.73,152.65,0.2441485]
[1727222860909,6.5492,152.69,152.65,0.2441485]
[1727222862222,6.5489,152.7,152.65,6.7949485]
[1727222863811,23.776884,152.69,152.65,6.7949485]
[1727222864829,6.5484,152.71,152.67,6.55]
[1727222865120,6.5484,152.71,152.65,0.2441485]
[1727222865121,23.776884,152.71,152.68,6.5496]
[1727222865325,15.8159,152.74,152.66,20.0]
[1727222865510,6.5476,152.73,152.69,6.5491]
[1727222866024,6.5476,152.73,152.68,6.5495]
[1727222866733,23.776884,152.72,152.68,6.5495]
[1727222867611,6.5476,152.73,152.65,9.48376956]
[1727222867612,6.5476,152.73,152.69,6.5491]
[1727222868305,22.7822,152.77,152.69,6.5491]
[1727222868512,23.776884,152.73,152.7,6.5486]
[1727222868715,16.3649,152.77,152.7,6.5486]
[1727222868939,23.776884,152.74,152.7,6.5486]
[1727222869519,23.776884,152.74,152.71,6.5483]
[1727222870524,23.776884,152.74,152.7,6.5487]
[1727222871317,23.776884,152.74,152.71,6.5483]
[1727222873635,23.776884,152.74,152.65,20.2441485]
[1727222873936,23.776884,152.74,152.67,6.5497]
[1727222873937,6.5479,152.72,152.67,6.5497]
[1727222874431,6.5479,152.72,152.65,20.2441485]
[1727222874738,23.776884,152.74,152.67,6.5499]
[1727222874739,23.776884,152.71,152.67,6.5499]
[1727222874927,23.776884,152.7,152.65,0.2441485]
[1727222875125,6.5505,152.66,152.65,0.2441485]
[1727222875343,30.327384,152.66,152.65,0.2441485]
[1727222875635,23.776884,152.67,152.65,0.2441485]
[1727222876738,23.776884,152.68,152.65,0.2441485]
[1727222877143,6.55,152.67,152.65,0.2441485]
[1727222877443,6.5484,152.71,152.66,6.5504]
[1727222877736,23.776884,152.7,152.66,6.5504]
[1727222877932,23.776884,152.7,152.65,0.2441485]
[1727222878122,23.776884,152.7,152.67,6.55]
[1727222878725,23.776884,152.71,152.67,6.5499]
[1727222878924,30.325184,152.71,152.67,6.5499]
[1727222879127,30.325184,152.71,152.65,0.2441485]
[1727222879326,30.325184,152.71,152.66,6.5504]
[1727222880128,23.776884,152.71,152.65,0.2441485]
[1727222880330,6.5492,152.69,152.65,6.7950485]
[1727222881941,5.0492,152.69,152.65,6.7950485]
[1727222882520,5.0492,152.69,152.65,23.1716485]
[1727222883845,23.776884,152.69,152.65,23.1716485]
[1727222885218,6.5483,152.71,152.66,6.5504]
[1727222885433,20.0,152.75,152.65,16.6207485]
[1727222886449,6.548,152.72,152.68,6.5495]
[1727222887338,23.776884,152.74,152.67,6.55]
[1727222888437,6.548,152.72,152.67,6.55]
[1727222890140,23.776884,152.74,152.65,16.6207485]
[1727222890337,6.5484,152.71,152.67,6.55]
[1727222891337,6.5479,152.72,152.67,6.55]
[1727222892236,6.5467,152.75,152.71,6.5483]
[1727222893150,6.5467,152.75,152.68,9.23962106]
[1727222893331,6.5467,152.75,152.7,6.5486]
[1727222895248,23.776884,152.79,152.72,6.5478]
[1727222895551,6.5458,152.77,152.73,6.5474]
[1727222899743,6.5491,152.7,152.67,6.0088]
[1727222900462,6.5492,152.69,152.65,0.2441485]
[1727222900638,40.145284,152.74,152.65,0.2441485]
[1727222900840,6.5498,152.68,152.65,0.2441485]
[1727222901748,6.5493,152.69,152.65,0.2441485]
[1727222903046,6.5493,152.69,152.65,6.7950485]
[1727222903352,20.0,152.73,152.65,6.7950485]
[1727222903560,6.5488,152.7,152.65,6.7950485]
[1727222906444,6.5483,152.71,152.66,6.5501]
[1727222910256,6.5465,152.76,152.7,6.5483]
[1727222910475,6.5461,152.77,152.72,6.5479]
[1727222911539,23.776884,152.76,152.72,6.5479]
[1727222912545,30.323084,152.76,152.72,6.5479]
[1727222914484,6.5457,152.78,152.73,6.5473]
[1727222914763,6.5457,152.78,152.74,6.547]
[1727222916665,6.5457,152.78,152.73,6.5474]
[1727222922962,0.2441485,152.8,152.69,6.0088]
[1727222922963,23.776884,152.77,152.69,6.0088]
[1727222923277,6.5479,152.72,152.65,6.7649485]
[1727222923576,6.5479,152.72,152.67,6.55]
[1727222924159,30.325284,152.71,152.65,6.7649485]
[1727222924367,6.5488,152.7,152.65,13.3157485]
[1727222925267,23.776884,152.71,152.65,0.2441485]
[1727222925268,23.776884,152.68,152.65,0.2441485]
[1727222925451,30.327384,152.66,152.65,0.2441485]
[1727222925651,50.327384,152.66,152.65,0.2441485]
[1727222928059,6.5526,152.61,152.6,0.3181234]
[1727222928260,30.329484,152.61,152.6,0.3181234]
[1727222931386,23.776884,152.61,152.6,0.3181234]
[1727222931960,30.328484,152.64,152.6,0.3181234]
[1727222932159,6.5516,152.64,152.6,0.3181234]
[1727222932773,6.5509,152.65,152.6,0.3181234]
[1727222932973,15.4349,152.68,152.6,0.3181234]
[1727222933183,6.5505,152.66,152.6,6.8711234]
[1727222933481,15.4349,152.68,152.6,6.8711234]
[1727222933482,21.9849,152.68,152.62,6.5522]
[1727222934185,6.5505,152.66,152.61,6.5526]
[1727222936852,15.4349,152.68,152.6,0.3181234]
[1727222937057,23.776884,152.66,152.62,6.5522]
[1727222937276,6.5501,152.67,152.62,6.5522]
[1727222941957,6.5522,152.62,152.6,0.3181234]
[1727222943081,23.776884,152.66,152.6,0.3181234]
[1727222943389,6.5496,152.68,152.63,6.5517]
[1727222945565,6.5496,152.68,152.61,16.3807]
[1727222945566,6.5491,152.7,152.64,7.86121649]
[1727222945760,6.5484,152.71,152.63,6.5152]
[1727222945961,6.5484,152.71,152.66,6.5501]
[1727222946391,48.7470485,152.76,152.67,6.5496]
[1727222946392,6.5479,152.72,152.67,6.5496]
[1727222946963,16.0144485,152.76,152.65,6.5508]
[1727222947159,16.0144485,152.76,152.62,12.1803]
[1727222947160,6.5508,152.66,152.61,6.5524]
[1727222947385,6.2305,152.74,152.62,6.5522]
[1727222947386,6.5501,152.67,152.62,6.5522]
[1727222947578,16.3719,152.71,152.62,6.5522]
[1727222947879,6.5491,152.7,152.6,0.3181234]
[1727222948280,23.776884,152.69,152.6,0.3181234]
[1727222948866,23.776884,152.69,152.64,6.5513]
[1727222950363,30.326284,152.69,152.64,6.5513]
[1727222951288,6.5501,152.67,152.62,22.9316]
[1727222951969,6.5501,152.67,152.63,6.5517]
[1727222952285,23.776884,152.69,152.64,6.5513]
[1727222952286,30.326284,152.69,152.64,6.5513]
[1727222952691,6.5496,152.68,152.64,6.5513]
[1727222952869,6.5496,152.68,152.62,16.3795]
[1727222953059,6.5496,152.68,152.63,6.5516]
[1727222954793,23.776884,152.69,152.63,6.5516]
[1727222954981,6.5501,152.67,152.63,6.5516]
[1727222955299,6.5501,152.67,152.62,22.9316]
[1727222956097,30.326384,152.69,152.63,6.5514]
[1727222956596,30.326384,152.69,152.64,6.5513]
[1727222961088,6.6216,152.75,152.6,14.77584019]
[1727222961290,16.0144485,152.76,152.71,6.5483]
[1727222961476,6.5466,152.75,152.7,22.92]
[1727222964191,16.0144485,152.76,152.7,16.3713]
[1727222964486,6.547,152.75,152.7,22.92]
[1727222966397,6.7903485,152.76,152.71,7.85769304]
[1727222966578,6.7903485,152.76,152.7,16.3713]
[1727222966780,6.7903485,152.76,152.72,6.5478]
[1727222967395,6.7903485,152.76,152.73,1.30937668]
[1727222967578,6.7903485,152.76,152.71,6.5482]
[1727222968399,6.5469,152.75,152.7,16.3713]
[1727222968581,6.5469,152.75,152.7,22.9197]
[1727222968984,6.5469,152.75,152.71,6.5482]
[1727222969904,0.2441485,152.76,152.71,6.5482]
[1727222969905,6.7904485,152.76,152.71,6.5482]
[1727222975197,0.2441485,152.76,152.7,16.3713]
[1727222975408,6.5479,152.72,152.67,12.9382]
[1727222976803,6.5475,152.73,152.68,6.5495]
[1727222978304,24.0210325,152.76,152.68,6.5495]
[1727222978511,24.0210325,152.76,152.65,6.5505]
[1727222978512,6.5491,152.7,152.65,6.5505]
[1727222979105,6.5491,152.7,152.64,12.1803]
[1727222979106,6.5493,152.69,152.64,18.7315]
[1727222979619,6.5499,152.68,152.64,16.3778]
[1727222979909,6.5492,152.69,152.64,16.3778]
[1727222980800,23.776884,152.74,152.64,16.3778]
[1727222980998,6.5484,152.71,152.67,6.55]
[1727222981301,23.776884,152.74,152.64,16.3778]
[1727222981490,6.5493,152.69,152.64,22.929]
[1727222990001,40.145184,152.74,152.64,16.3778]
[1727222990002,23.776884,152.74,152.64,16.3778]
[1727222990207,6.5501,152.67,152.63,6.5517]
[1727222990998,16.3704,152.72,152.61,16.3812]
[1727222990999,6.5506,152.66,152.61,16.3812]
[1727222991292,16.444,152.69,152.61,16.3812]
[1727222991293,6.5509,152.65,152.61,16.3812]
[1727222995527,16.444,152.69,152.61,16.3812]
[1727222995818,16.444,152.69,152.65,6.5508]
[1727222995999,16.444,152.69,152.63,16.3785]
[1727222996204,6.55,152.67,152.63,16.3785]
[1727222996606,6.5497,152.68,152.64,6.5512]
[1727222996819,6.5501,152.67,152.63,22.9302]
[1727222997318,6.5505,152.66,152.61,6.5522]
[1727222998397,6.5505,152.66,152.6,16.7002234]
[1727222998614,6.5505,152.66,152.62,6.5521]
[1727222998921,6.5501,152.67,152.62,6.5521]
[1727223000421,6.5496,152.68,152.63,7.86153169]
[1727223000623,16.444,152.69,152.6,0.3181234]
[1727223000821,6.5508,152.66,152.62,16.3799]
[1727223002823,6.5501,152.67,152.62,24.24211895]
[1727223003812,6.5501,152.67,152.62,22.9318]
[1727223004002,6.5505,152.66,152.62,16.3799]
[1727223010432,6.5526,152.61,152.6,0.3181234]
[1727223011907,6.5523,152.62,152.6,0.3181234]
[1727223012124,16.378,152.65,152.6,0.3181234]
[1727223012125,46.646184,152.68,152.6,0.3181234]
[1727223012329,6.5505,152.66,152.61,6.5525]
[1727223012630,6.495,152.68,152.6,0.3181234]
[1727223012631,6.5514,152.64,152.6,0.3181234]
[1727223016535,6.495,152.68,152.6,0.3181234]
[1727223017247,32.8178,152.69,152.62,6.5521]
[1727223017248,6.5506,152.66,152.62,6.5521]
[1727223017820,6.5497,152.68,152.63,6.5514]
[1727223019323,6.5504,152.67,152.62,6.5522]
[1727223020835,23.776884,152.68,152.61,16.3808]
[1727223021050,6.5508,152.66,152.61,22.9334]
[1727223021246,6.5509,152.65,152.61,22.9334]
[1727223022642,23.776884,152.68,152.6,0.3181234]
[1727223022643,40.151484,152.68,152.6,0.3181234]
[1727223022853,6.5514,152.64,152.6,0.3181234]
[1727223023747,40.151484,152.68,152.6,1.62863817]
[1727223023952,6.551,152.65,152.61,6.5526]
[1727223025052,6.5501,152.67,152.62,6.5518]
[1727223026256,6.5501,152.67,152.6,25.94906997]
[1727223026450,6.5501,152.67,152.63,6.5516]
[1727223030853,16.444,152.69,152.64,6.5512]
[1727223031069,22.9933,152.69,152.64,6.5512]
[1727223031461,6.5493,152.69,152.64,6.5512]
[1727223031844,6.5493,152.69,152.62,31.71754657]
[1727223031845,6.5487,152.71,152.65,1.3100649]
[1727223032042,6.5484,152.71,152.65,16.377]
[1727223032345,6.5484,152.71,152.66,6.5501]
[1727223032540,23.776884,152.72,152.65,22.9278]
[1727223032541,6.549,152.7,152.65,22.9278]
[1727223036460,21.8701,152.73,152.68,6.5492]
[1727223036657,21.8701,152.73,152.66,1.30998946]
[1727223037044,21.8701,152.73,152.68,6.5495]
[1727223037349,6.5479,152.72,152.68,6.5495]
[1727223037542,6.5479,152.72,152.68,7.85927254]
[1727223038438,6.5479,152.72,152.68,6.5495]
[1727223038959,6.5479,152.72,152.67,22.9241]
[1727223043565,6.5479,152.72,152.67,16.3742]
[1727223043766,6.5479,152.72,152.68,6.5495]
[1727223044261,6.5479,152.72,152.68,7.85928378]
[1727223045449,6.5479,152.72,152.68,6.5495]
[1727223049570,21.8698,152.73,152.68,7.8592622]
[1727223049753,21.8698,152.73,152.68,6.5495]
[1727223050646,23.776884,152.72,152.63,9.24884657]
[1727223050852,6.5489,152.7,152.66,6.5504]
[1727223051869,6.5495,152.69,152.64,6.551]
[1727223052077,6.5495,152.69,152.63,9.24884657]
[1727223053152,6.5488,152.7,152.65,6.5506]
[1727223055957,6.5488,152.7,152.66,6.5504]
[1727223057577,23.776884,152.72,152.66,6.5504]
[1727223057777,6.5486,152.71,152.66,6.5504]
[1727223058459,23.776884,152.72,152.66,6.5504]
[1727223058758,6.5488,152.7,152.66,6.5504]
[1727223060076,6.5484,152.71,152.66,6.5504]
[1727223060456,6.5488,152.7,152.65,6.5508]
[1727223061089,23.776884,152.72,152.64,16.3779]
[1727223061090,6.5498,152.68,152.64,16.3779]
[1727223061263,23.776884,152.72,152.6,12.4984234]
[1727223061264,6.5508,152.66,152.6,12.4984234]
[1727223061594,23.776884,152.7,152.6,12.4984234]
[1727223061882,6.5497,152.68,152.63,6.5514]
[1727223062180,23.776884,152.68,152.61,16.3812]
[1727223062879,6.5512,152.65,152.61,16.3812]
[1727223063377,6.5512,152.65,152.61,22.9337]
[1727223066856,6.5506,152.66,152.61,22.9337]
[1727223068385,6.5505,152.66,152.61,6.5523]
[1727223068591,6.5504,152.67,152.62,6.5518]
[1727223077274,23.776884,152.68,152.6,16.7000234]
[1727223077476,6.551,152.65,152.6,16.7000234]
[1727223077669,6.5509,152.65,152.6,23.2527234]
[1727223077869,6.5509,152.65,152.6,16.7000234]
[1727223078174,6.5509,152.65,152.61,6.5525]
[1727223078375,23.776884,152.68,152.61,6.5525]
[1727223078695,6.5505,152.66,152.61,6.5525]
[1727223080193,6.5505,152.66,152.62,6.5522]
[1727223080383,6.5501,152.67,152.62,6.5522]
[1727223080698,23.776884,152.68,152.64,6.5512]
[1727223080883,30.326584,152.68,152.64,6.5512]
[1727223081594,16.5166,152.69,152.62,16.3799]
[1727223081797,16.5166,152.69,152.65,6.5508]
[1727223082308,6.5496,152.68,152.64,6.5513]
[1727223082485,6.5496,152.68,152.62,22.9318]
[1727223082886,6.55,152.67,152.62,16.3799]
[1727223083094,6.55,152.67,152.62,22.9319]
[1727223084004,6.46342574,152.67,152.62,22.9319]
[1727223084384,23.776884,152.68,152.6,0.3181234]
[1727223084593,6.5515,152.64,152.6,0.3181234]
[1727223084778,23.776884,152.68,152.6,0.3181234]
[1727223084779,6.5526,152.61,152.6,0.3181234]
[1727223087001,30.329484,152.61,152.6,0.3181234]
[1727223089776,15.4386,152.62,152.6,0.3181234]
[1727223092092,21.9908,152.62,152.6,0.3181234]
[1727223094111,15.4386,152.62,152.6,0.3181234]
[1727223095318,30.329484,152.61,152.6,0.3181234]
[1727223099711,15.4386,152.62,152.6,0.3181234]
[1727223101887,6.5519,152.63,152.6,0.3181234]
[1727223103093,23.73704175,152.65,152.6,0.3181234]
[1727223103411,30.28794175,152.65,152.6,6.8708234]
[1727223107323,6.5514,152.64,152.6,6.8708234]
[1727223108711,23.73704175,152.65,152.6,0.3181234]
[1727223108919,23.73704175,152.65,152.61,6.5525]
[1727223109620,30.28804175,152.65,152.61,6.5525]
[1727223109801,6.551,152.65,152.61,6.5525]
[1727223110296,6.551,152.65,152.6,6.8710234]
[1727223111319,32.2921,152.7,152.62,6.5521]
[1727223111496,6.5505,152.66,152.62,6.5521]
[1727223113923,6.5514,152.64,152.6,23.2530234]
[1727223115412,6.5514,152.64,152.6,16.7001234]
[1727223118433,6.5526,152.61,152.6,0.3181234]
[1727223120231,30.329484,152.61,152.6,0.3181234]
[1727223123322,6.4706,152.66,152.6,0.3181234]
[1727223123527,43.776884,152.65,152.6,0.3181234]
[1727223123710,6.5523,152.62,152.6,0.3181234]
[1727223125834,43.776884,152.65,152.6,0.3181234]
[1727223125835,6.5526,152.61,152.6,0.3181234]
[1727223131329,30.329484,152.61,152.6,0.3181234]
[1727223132211,46.986084,152.61,152.6,0.3181234]
[1727223136026,30.329484,152.61,152.6,0.3181234]
[1727223137654,23.776884,152.61,152.6,0.3181234]
[1727223138150,30.329484,152.61,152.6,0.3181234]
[1727223145227,6.5526,152.61,152.6,0.3181234]
[1727223148841,6.5523,152.62,152.6,0.3181234]
[1727223149346,6.5519,152.63,152.6,0.3181234]
[1727223150959,23.776884,152.64,152.6,0.3181234]
[1727223151253,30.329484,152.61,152.6,0.3181234]
[1727223153961,30.329484,152.61,152.6,0.3181234]
[1727223154127,23.776884,152.61,152.6,0.3181234]
[1727223154321,30.329484,152.61,152.6,0.3181234]
[1727223159232,50.329484,152.61,152.6,0.3181234]
[1727223159447,66.986084,152.61,152.6,0.3181234]
[1727223161565,46.986084,152.61,152.6,0.3181234]
[1727223168651,30.329484,152.61,152.6,0.3181234]
[1727223171643,50.329484,152.61,152.6,0.3181234]
[1727223181583,50.329484,152.61,152.6,2.34e-05]
[1727223204805,50.329484,152.61,152.56,0.2441485]
[1727223204806,6.5543,152.57,152.56,0.2441485]
[1727223205101,30.331184,152.57,152.56,0.2441485]
[1727223207393,6.5565,152.52,152.51,0.3181234]
[1727223207606,50.333384,152.52,152.51,0.3181234]
[1727223212681,6.5565,152.52,152.51,0.3181234]
[1727223213101,6.5561,152.53,152.51,0.3181234]
[1727223213305,15.2334,152.59,152.53,6.5559]
[1727223213501,6.553,152.61,152.55,6.5548]
[1727223213701,6.5535,152.6,152.55,6.5548]
[1727223214509,6.5535,152.59,152.54,22.944]
[1727223214720,6.554,152.58,152.54,16.3884]
[1727223217042,6.5539,152.58,152.53,6.5559]
[1727223218915,6.5518,152.63,152.58,6.5538]
[1727223219091,6.5513,152.64,152.59,6.5535]
[1727223219510,15.4775485,152.67,152.57,25.63374657]
[1727223219822,6.551,152.65,152.6,6.5529]
[1727223220411,6.551,152.65,152.57,25.63374657]
[1727223220412,15.4775485,152.67,152.57,25.63374657]
[1727223220713,15.4775485,152.67,152.58,6.5538]
[1727223220714,6.5521,152.63,152.58,6.5538]
[1727223220914,24.29592504,152.67,152.56,18.3152]
[1727223220915,6.5533,152.6,152.56,18.3152]
[1727223221233,6.5535,152.59,152.56,18.3152]
[1727223221393,6.5531,152.6,152.56,18.3152]
[1727223221590,24.29592504,152.67,152.56,18.3152]
[1727223221792,6.5513,152.64,152.59,6.5532]
[1727223225817,6.5509,152.65,152.6,6.5526]
[1727223226288,6.5514,152.64,152.59,6.5534]
[1727223227019,23.776884,152.66,152.58,16.3839]
[1727223227195,6.5518,152.63,152.58,22.9377]
[1727223233896,6.5527,152.61,152.56,24.8699]
[1727223236330,23.776884,152.66,152.56,18.3152]
[1727223236503,6.5534,152.6,152.56,18.3152]
[1727223236731,6.5534,152.6,152.56,24.8699]
[1727223237731,6.5527,152.61,152.56,24.8699]
[1727223240031,6.5523,152.62,152.57,6.554]
[1727223241036,6.5523,152.62,152.56,18.3152]
[1727223241037,6.5519,152.63,152.58,6.5535]
[1727223241408,6.5519,152.63,152.59,6.5533]
[1727223244234,6.5519,152.63,152.58,6.5538]
[1727223244737,6.5523,152.62,152.58,6.45986045]
[1727223245623,6.5523,152.62,152.57,16.3854]
[1727223245824,6.5527,152.61,152.57,22.9396]
[1727223247351,23.776884,152.66,152.56,18.3152]
[1727223247549,6.5532,152.6,152.56,6.1349]
[1727223248246,43.776884,152.64,152.56,6.1349]
[1727223248447,6.5547,152.57,152.53,6.483]
[1727223248624,6.5544,152.57,152.53,6.483]
[1727223248825,16.3821,152.61,152.53,6.483]
[1727223249024,6.554,152.58,152.53,13.039]
[1727223249726,6.5552,152.55,152.51,0.3181234]
[1727223252251,6.5557,152.54,152.51,0.3181234]
[1727223252861,6.5565,152.52,152.51,0.3181234]
[1727223253545,30.333384,152.52,152.51,0.3181234]
[1727223267751,50.333384,152.52,152.51,0.3181234]
[1727223283051,43.776884,152.51,152.5,0.1091131]
[1727223283293,50.333784,152.51,152.5,0.1091131]
[1727223284080,50.333784,152.51,152.5,1.31e-05]
[1727223284288,52.962573,152.51,152.5,1.31e-05]
[1727223286009,72.662573,152.51,152.5,1.31e-05]
[1727223286338,72.662573,152.51,152.46,0.2441485]
[1727223286339,6.5586,152.47,152.46,0.2441485]
[1727223286489,50.335484,152.47,152.46,0.2441485]
[1727223287501,30.335484,152.47,152.46,0.2441485]
[1727223298526,50.335484,152.47,152.46,0.2441485]
[1727223300614,6.5603,152.43,152.42,0.3181234]
[1727223300836,30.337184,152.43,152.42,0.3181234]
[1727223302834,50.337184,152.43,152.42,0.3181234]
[1727223303035,50.337684,152.42,152.41,1.31e-05]
[1727223304912,43.776884,152.42,152.37,0.2441485]
[1727223305213,30.339384,152.38,152.37,0.2441485]
[1727223307026,52.5035,152.43,152.37,0.2441485]
[1727223307027,20.0,152.43,152.37,0.2441485]